Cogmind - Beta 12 @@@ ROGUE MODE // 2023.06.19 @ 14:28:45 Player: cptwinky Result: Destroyed by G-47 Trooper with Particle Gun Performance ------------- Evolutions (1) 500 Regions Visited (6) 1200 Robots Destroyed (76) 380 Value Destroyed (1599) 1599 Prototype IDs (8) 160 Alien Tech Used (0) 0 Bonus (110) 110 TOTAL SCORE: 3949 Bonus ------- Follower Combat Kills 110 Cogmind --------- Core Integrity 0/400 Matter 269/300 Energy 310/310 System Corruption 0% Temperature Cool (32) Movement Treading (230) Ox1 Location -8/Mines Parts ------- > --- POWER (1) -------- Reinforced Fission Core > --- PROPULSION (3) --- Light Treads Advanced Treads Advanced Treads > --- UTILITY (3) ------ High-capacity Storage Unit Experimental Targeting Computer Advanced Weapon Cycler > --- WEAPON (2) ------- Improved Assault Rifle Grenade Launcher > --- INVENTORY (20) --- Makeshift Power Source Light Treads Makeshift Leg Makeshift Leg Makeshift Leg Advanced Myomer Leg Advanced Myomer Leg High-capacity Matter Pod (200) Machine Analyzer Improved Signal Interpreter Makeshift Salvage Targeting Computer Improved Armor Integrity Analyzer Hacking Suite Makeshift System Shield Advanced Component Analysis Suite AS-neutralizer No. 17b Heavy Assault Rifle Improved Assault Rifle Axe Makeshift Axe Peak State ------------ > --- POWER ------------ Reinforced Fission Core > --- PROPULSION ------- Advanced Treads Advanced Treads Advanced Treads > --- UTILITY ---------- High-capacity Storage Unit Experimental Targeting Computer Advanced Weapon Cycler > --- WEAPON ----------- Improved Assault Rifle Improved Assault Rifle > --- INVENTORY -------- Makeshift Power Source Light Treads Light Treads Light Treads Makeshift Leg Makeshift Leg Makeshift Leg Makeshift Leg Advanced Myomer Leg Advanced Myomer Leg High-capacity Matter Pod Makeshift Salvage Targeting Computer Makeshift System Shield Advanced Component Analysis Suite AS-neutralizer No. 17b Heavy Assault Rifle Grenade Launcher Axe Makeshift Axe [Rating: 43] Favorites ----------- Power Ion Engine Engine Ion Engine Power Core Reinforced Fission Core Propulsion Light Treads Treads Light Treads Leg Aluminum Leg Utility High-capacity Storage Unit Device Advanced Weapon Cycler Storage High-capacity Storage Unit Processor Targeting Computer Protection Hardened Light Armor Plating Weapon Improved Assault Rifle Ballistic Gun Improved Assault Rifle Launcher Grenade Launcher Special Weapon Plasma Cutter Slashing Weapon Axe Build | -11 -10 -10 -9 -9 -9 -8 ------- Run | Jun Mat Min Mat Min Exi Min Slots Evolved 2 | . . . 2 . . . Power . | . . . . . . . Propulsion 1 | . . . 1 . . . Utility 1 | . . . 1 . . . Weapon . | . . . . . . . Parts Attached 75 | 2 7 3 27 7 26 3 Power 3 | . 1 . 1 . 1 . Engine 2 | . 1 . 1 . . . Core 1 | . . . . . 1 . Reactor . | . . . . . . . Propulsion 23 | 2 . . 12 1 8 . Treads 22 | 2 . . 12 1 7 . Leg 1 | . . . . . 1 . Wheel . | . . . . . . . Hover . | . . . . . . . Flight . | . . . . . . . Utility 13 | . 3 1 3 . 6 . Device 3 | . 1 . . . 2 . Storage 2 | . 1 . 1 . . . Processor 2 | . . . 1 . 1 . Hackware . | . . . . . . . Protection 6 | . 1 1 1 . 3 . Artifact . | . . . . . . . Weapon 36 | . 3 2 11 6 11 3 Energy Gun . | . . . . . . . Energy Cannon . | . . . . . . . Ballistic Gun 21 | . 2 1 9 3 5 1 Ballistic Cannon . | . . . . . . . Launcher 10 | . 1 1 2 1 3 2 Special Weapon 1 | . . . . . 1 . Impact Weapon . | . . . . . . . Slashing Weapon 4 | . . . . 2 2 . Piercing Weapon . | . . . . . . . Special Melee Weapon . | . . . . . . . Unidentified Prototypes 3 | . . . . . 3 . Parts Lost 13 | . . . 2 . 11 . Power 1 | . . . . . 1 . Propulsion 6 | . . . 2 . 4 . Utility 3 | . . . . . 3 . Weapon 3 | . . . . . 3 . Highest Loss Streak 6 | . . . 1 . 6 . To Critical Strikes 3 | . . . . . 3 . Average Slot Usage (%) 99 | . 98 100 98 100 99 100 Engine 9 | . 14 14 11 11 3 . Core 2 | . . . . . 7 11 Treads 31 | . 28 28 32 33 33 33 Device 2 | . 1 . . . 7 11 Storage 11 | . 14 14 11 11 11 11 Processor 7 | . . . 9 11 9 11 Protection 9 | . 11 14 11 11 5 . Ballistic Gun 22 | . 27 27 21 21 20 21 Naked Turns . | . . . . . . . Heaviest Build 77 | 12 31 37 59 56 77 68 Greatest Support 69 | 40 40 40 69 69 66 64 Greatest Overweight (x) 1 | . . . . . 1 1 Average Overweight (x) . | . . . . . . 1 Largest Inventory Capacity 20 | 8 15 15 20 20 20 20 Average Capacity 17 | 8 13 15 17 20 20 20 Most Carried 20 | 6 15 15 20 20 20 20 Average Carried 16 | 6 11 14 16 19 16 20 Final Capacity 20 | 8 15 15 20 20 20 20 Final Carried 20 | 6 14 15 20 20 20 20 Class Distribution -------------------- 90% | Mutant 9% | Scavenger-Mutant Dominant Class ---------------- Mutant | -10/Materials Mutant | -10/Mines Mutant | -9/Materials Mutant | -9/Mines Mutant | -9/Exiles Scavenger-Mutant | -8/Mines Resources | -11 -10 -10 -9 -9 -9 -8 ----------- Run | Jun Mat Min Mat Min Exi Min Matter Collected 2795 | 176 243 258 937 192 912 77 Remotely . | . . . . . . . Salvage Created 2364 | . 282 26 1247 200 517 92 Parts 189 | . 21 5 92 6 58 7 Haulers Intercepted 4 | . 1 . 3 . . . Recyclers Shooed 3 | . . 1 2 . . . Parts Field Recycled . | . . . . . . . Retrieved Matter . | . . . . . . . Parts Self-Destructed . | . . . . . . . Prevented . | . . . . . . . Kills | -11 -10 -10 -9 -9 -9 -8 ------- Run | Jun Mat Min Mat Min Exi Min Combat Hostiles Destroyed 54 | . 7 4 28 7 5 3 Melee 1 | . . . . . 1 . Guns 39 | . 6 1 23 7 1 1 AOE 14 | . 1 3 5 . 3 2 Classes Destroyed 14 | . 7 . 4 1 2 . Worker 5 | . 1 . 3 1 . . Builder 1 | . . . 1 . . . Tunneler 1 | . 1 . . . . . Hauler 4 | . 1 . 3 . . . Recycler 1 | . . . 1 . . . Mechanic 1 | . 1 . . . . . Turret 1 | . . . . . 1 . Watcher 5 | . 2 . 3 . . . Swarmer 16 | . 3 4 9 . . . Grunt 22 | . 4 . 11 4 . 3 Duelist 1 | . . . 1 . . . Sentry 7 | . . . 7 . . . Zionite 8 | . . . . . 8 . Assembled 7 | . . . . 3 4 . Best Kill Streak 7 | . 4 3 7 2 4 3 Combat Bots Only 4 | . 3 3 4 2 3 3 Max Kills in Single Turn 3 | . 2 2 3 1 1 1 Gunslinging 1 | . 1 . . . . . Exploded 2 | . 1 2 2 . 1 1 Melee 1 | . . . . . 1 . Uniques/NPCs Destroyed 4 | . . . . . 4 . 8R-AWN (-9/Exiles) EX-DEC (-9/Exiles) EX-HEX (-9/Exiles) EX-BIN (-9/Exiles) Combat | -11 -10 -10 -9 -9 -9 -8 -------- Run | Jun Mat Min Mat Min Exi Min Damage Taken 4141 | . 424 31 999 274 2180 233 Core 516 | . 91 23 39 10 307 46 Absorbed by Shields . | . . . . . . . Redirected to Shielding 8 | . 8 . . . . . Regen/Repaired (Parts) 349 | . . . 349 . . . Core Remaining (%) 77 | 100 . 54 . . . . Volleys Fired 252 | . 45 4 88 21 87 7 Largest 2 | . 2 2 2 2 2 2 Hottest 46 | . 40 40 46 46 46 46 Shots Fired 463 | . 83 6 173 42 149 10 Gun 427 | . 79 4 170 42 126 6 Cannon . | . . . . . . . Launcher 31 | . 4 2 3 . 18 4 Special 5 | . . . . . 5 . Kinetic 427 | . 79 4 170 42 126 6 Thermal 5 | . . . . . 5 . Explosive 31 | . 4 2 3 . 18 4 Electromagnetic . | . . . . . . . Robot Hit Streak 29 | . 6 1 13 5 29 5 Robot Miss Streak 6 | . 6 3 6 4 2 1 Penetration Max . | . . . . . . . Secondary Targets 1 | . 1 . . . . . Max Gunslinging Chain 1 | . 1 . . . . . Shots Hit Robots 316 | . 47 1 117 25 120 6 Core Hits 142 | . 23 5 49 12 41 12 Critical Kills . | . . . . . . . Critical Parts Destroyed . | . . . . . . . Critical Strikes . | . . . . . . . Melee Attacks 37 | . . . . 10 27 . Impact . | . . . . . . . Slashing 37 | . . . . 10 27 . Piercing . | . . . . . . . Sneak Attacks . | . . . . . . . Combat Hostiles . | . . . . . . . Follow-up Attacks 1 | . . . . . 1 . Damage Inflicted 6764 | . 889 156 2158 487 2671 403 Guns 4252 | . 626 11 1763 394 1395 63 Cannons . | . . . . . . . Explosions 1516 | . 254 110 354 . 458 340 Melee 852 | . . . . 36 816 . Ramming 142 | . 9 35 41 57 . . Kinetic 4252 | . 626 11 1763 394 1395 63 Thermal 2 | . . . . . 2 . Explosive 1516 | . 254 110 354 . 458 340 Electromagnetic . | . . . . . . . Impact . | . . . . . . . Slashing 852 | . . . . 36 816 . Piercing . | . . . . . . . Highest Corruption . | . . . . . . . Average Corruption . | . . . . . . . Corruption Purged . | . . . . . . . Corruption Blocked . | . . . . . . . Overload Shots . | . . . . . . . Overflow Damage 42 | . . . . 10 32 . Projectiles . | . . . . . . . Explosions 18 | . . . . . 18 . Melee 24 | . . . . 10 14 . Knockbacks . | . . . . . . . Impact . | . . . . . . . Kinetic . | . . . . . . . Secondary . | . . . . . . . Self-Inflicted Damage 179 | . 28 . 28 . 52 71 Shots 8 | . 1 . 1 . 2 4 Rammed 17 | . 3 4 5 5 . . Targets Rammed 22 | . 3 4 9 6 . . Kicked . | . . . . . . . Crushed 5 | . . . 4 1 . . Highest Temperature 122 | . 15 . 39 39 122 67 Average Temperature 26 | . 4 . 10 13 41 32 Received Heat Transfer 720 | . 174 . 315 150 . 81 Siege Activations . | . . . . . . . Robots Corrupted . | . . . . . . . Combat Hostiles . | . . . . . . . Parts Fried 1 | . . . . 1 . . Impact Corruptions 1 | . . . . 1 . . Robots Melted . | . . . . . . . Combat Hostiles . | . . . . . . . Parts Melted . | . . . . . . . Heat Transferred 18 | . . . . . 18 . Parts Sabotaged . | . . . . . . . Parts Stolen . | . . . . . . . Parts Stripped . | . . . . . . . Power Chain Reactions . | . . . . . . . Missiles Intercepted . | . . . . . . . Alert | -11 -10 -10 -9 -9 -9 -8 ------- Run | Jun Mat Min Mat Min Exi Min Peak Influence 347 | . 146 118 347 93 . 119 Initial 53 | . . . . 53 . . Average 93 | . 76 14 159 46 . 62 Maximum Alert Level 1 | . . . 1 . . . Low Security (%) 84 | 100 100 100 61 100 . 100 Level 1 15 | . . . 38 . . . Level 2 . | . . . . . . . Level 3 . | . . . . . . . Level 4 . | . . . . . . . Level 5 . | . . . . . . . High Security . | . . . . . . . Max Security . | . . . . . . . Squads Dispatched 4 | . . 1 3 . . . Investigation 3 | . . 1 2 . . . Extermination . | . . . . . . . Reinforcement 1 | . . . 1 . . . Assault . | . . . . . . . Garrison . | . . . . . . . Intercept . | . . . . . . . Searches Triggered . | . . . . . . . Construction Impeded . | . . . . . . . Haulers Reinforced . | . . . . . . . Active Scanning Responses . | . . . . . . . Cargo Convoy Interrupts . | . . . . . . . Stealth | -11 -10 -10 -9 -9 -9 -8 --------- Run | Jun Mat Min Mat Min Exi Min Distress Signals 5 | . 1 . 3 1 . . Communications Jammed . | . . . . . . . Distress Signals . | . . . . . . . Times Spotted 150 | . 12 5 41 12 74 6 Peak Tracking Total 9 | . 4 3 5 3 9 3 Tactical Retreats 20 | . . . 3 . 17 . Traps | -11 -10 -10 -9 -9 -9 -8 ------- Run | Jun Mat Min Mat Min Exi Min Traps Triggered . | . . . . . . . Indirectly . | . . . . . . . Trap Hack Attempts . | . . . . . . . Triggered . | . . . . . . . Disarmed . | . . . . . . . Reprogrammed . | . . . . . . . Reused . | . . . . . . . Traps Extracted . | . . . . . . . Installed 1 | . . . . . 1 . Triggered . | . . . . . . . Most Traps Carried 3 | . . . . 3 3 . Exploded 3 | . . . . . 3 . Machines | -11 -10 -10 -9 -9 -9 -8 ---------- Run | Jun Mat Min Mat Min Exi Min Machines Disabled 12 | . . . 2 . 8 2 Max in Single Turn 2 | . . . 1 . 2 2 Machines Repaired . | . . . . . . . Machines Sabotaged . | . . . . . . . Overloaded Fab Kills . | . . . . . . . Hacking | -11 -10 -10 -9 -9 -9 -8 --------- Run | Jun Mat Min Mat Min Exi Min Machines Accessed 14 | . 3 1 9 . 1 . Terminals 9 | . 3 . 6 . . . Fabricators . | . . . . . . . Repair Stations 2 | . . . 2 . . . Recycling Units 1 | . . . 1 . . . Scanalyzers . | . . . . . . . Garrison Access . | . . . . . . . Total Hacks 46 | . 12 1 32 . 1 . Successful 26 | . 9 1 15 . 1 . Failed 20 | . 3 . 17 . . . Catastrophic 5 | . . . 5 . . . Database Lockouts . | . . . . . . . Manual 24 | . 5 . 19 . . . Terminals 32 | . 12 . 20 . . . Fabricators . | . . . . . . . Repair Stations 9 | . . . 9 . . . Recycling Units 3 | . . . 3 . . . Scanalyzers . | . . . . . . . Garrison Access . | . . . . . . . Terminal Hacks 18 | . 9 1 7 . 1 . Record 1 | . . . . . 1 . Part Schematic 1 | . 1 . . . . . Robot Analysis 4 | . 3 . 1 . . . Prototype ID Bank 3 | . 2 . 1 . . . Open Door 1 | . . 1 . . . . Branch Access Points 1 | . . . 1 . . . Unreport Threat 2 | . . . 2 . . . Locate Traps 3 | . 2 . 1 . . . Recall Reinforcements 1 | . . . 1 . . . Zone Layout 1 | . 1 . . . . . Fabricator Hacks . | . . . . . . . Repair Station Hacks 6 | . . . 6 . . . Scan Component 3 | . . . 3 . . . Repair 3 | . . . 3 . . . Recycling Unit Hacks 1 | . . . 1 . . . Retrieve Components 1 | . . . 1 . . . Scanalyzer . | . . . . . . . Garrison Access Hacks . | . . . . . . . Unauthorized Hacks 1 | . . . 1 . . . Terminals 1 | . . . 1 . . . Botnet 1 | . . . 1 . . . Fabricators . | . . . . . . . Repair Stations . | . . . . . . . Recycling Units . | . . . . . . . Scanalyzers . | . . . . . . . Garrison Access . | . . . . . . . Data Cores Recovered . | . . . . . . . Used . | . . . . . . . Hacking Detections 12 | . 3 . 9 . . . Full Trace Events 3 | . . . 3 . . . Feedback Events . | . . . . . . . Feedback Blocked . | . . . . . . . Robot Schematics Acquired . | . . . . . . . Robots Built . | . . . . . . . Authchips . | . . . . . . . Time . | . . . . . . . Total Robot Build Rating . | . . . . . . . Part Schematics Acquired 1 | . 1 . . . . . Parts Built . | . . . . . . . Authchips . | . . . . . . . Time . | . . . . . . . Total Part Build Rating . | . . . . . . . Parts Repaired 3 | . . . 3 . . . Time 78 | . . . 78 . . . Parts Recycled . | . . . . . . . Recycled Matter . | . . . . . . . Retrieved Matter . | . . . . . . . Retrieved Components 10 | . . . 10 . . . Parts Scanalyzed . | . . . . . . . Part Schematics Acquired . | . . . . . . . Parts Damaged . | . . . . . . . Bothacking | -11 -10 -10 -9 -9 -9 -8 ------------ Run | Jun Mat Min Mat Min Exi Min Used RIF Installer . | . . . . . . . Robots Hacked . | . . . . . . . Non-combat . | . . . . . . . Combat . | . . . . . . . Robot Hacks Applied . | . . . . . . . Relay Couplers Released . | . . . . . . . Fabnet Peak Effective % . | . . . . . . . Robots Rewired . | . . . . . . . Allies Hacked . | . . . . . . . Hacks Repelled . | . . . . . . . Allies | -11 -10 -10 -9 -9 -9 -8 -------- Run | Jun Mat Min Mat Min Exi Min Total Allies 3 | . . . . 3 . . Largest Group 3 | . . . . 3 . . Highest-Rated Group 40 | . . . . 40 . . Highest-Rated Ally 16 | . . . . 16 . . Total Orders . | . . . . . . . Ally Attacks 17 | . . . . 17 . . Total Damage 253 | . . . . 253 . . Kills 5 | . . . . 5 . . Allies Corrupted 1 | . . . . 1 . . Allies Melted . | . . . . . . . Intel | -11 -10 -10 -9 -9 -9 -8 ------- Run | Jun Mat Min Mat Min Exi Min Robot Analysis Total 4 | . 3 . 1 . . . Derelict Logs Recovered 4 | . . 2 . 2 . . Drone Launches . | . . . . . . . Drone Recoveries . | . . . . . . . Exploration | -11 -10 -10 -9 -9 -9 -8 ------------- Run | Jun Mat Min Mat Min Exi Min Turns Passed 7333 | 3 941 742 2031 1142 2355 119 Spaces Moved 3512 | 1 476 448 997 580 967 43 Core . | . . . . . . . Treads 3512 | 1 476 448 997 580 967 43 Legs . | . . . . . . . Wheels . | . . . . . . . Hover . | . . . . . . . Flight . | . . . . . . . Fastest Speed 150 | 160 160 160 160 160 150 230 Average Speed 171 | 160 160 160 160 160 196 230 Slowest Speed 230 | 160 160 160 160 160 230 230 Overloaded Moves . | . . . . . . . Propulsion Burnouts . | . . . . . . . Robots Hopped . | . . . . . . . Cave-ins Triggered . | . . . . . . . Exploration Rate (%) 55 | 2 48 99 58 88 78 13 Regions Visited 6 Branch Regions 4 Pre-discovered Areas 3 | . . . . 2 1 . Known Exits Taken 1 | . . . 1 . . . Unknown Exits Taken 5 | 1 1 1 . 1 1 . Scrap Searched 4 | . . 1 . 3 . . Spaces Dug 15 | . 7 . . . . 8 Terrain Destroyed 120 | . 27 15 25 . 26 27 Melee . | . . . . . . . Projectile . | . . . . . . . AOE 120 | . 27 15 25 . 26 27 Terrain Rammed . | . . . . . . . Walls Destroyed . | . . . . . . . Machines Disabled . | . . . . . . . Actions | -11 -10 -10 -9 -9 -9 -8 --------- Run | Jun Mat Min Mat Min Exi Min Total 4402 | 2 574 467 1276 732 1295 56 Wait 374 | . 17 1 114 98 141 3 Move 3506 | . 475 447 996 579 966 43 Hop . | . . . . . . . Pick Up 69 | . 15 4 19 5 26 . Fast Attach 13 | . 2 1 5 1 4 . Attach 13 | . 1 . 2 . 10 . Detach 5 | . 2 . . . 3 . Swap 49 | 2 4 2 20 6 12 3 Drop 61 | . 10 4 23 6 18 . Fire 252 | . 45 4 88 21 87 7 Melee 36 | . . . . 10 26 . Ram . | . . . . . . . Kick . | . . . . . . . Crush 22 | . 3 4 9 6 . . Escape Stasis . | . . . . . . . Rewire 1 | . . . . . 1 . Trap 1 | . . . . . 1 . Miscellaneous . | . . . . . . . Route ------- -11/Junkyard -10/Materials (discovered 2 exits: *Mat / *Min) -10/Mines (discovered 2 exits: *Mat x2) -9/Materials (discovered 3 exits: *Mat x2 / *Min) -9/Mines (discovered 2 exits: *Mat / *Exi) -9/Exiles -8/Mines History --------- Turn | Location | Event 4 | -11/Junkyard | Discovered new exit (range 0) 4 | -11/Junkyard | Entered Materials 303 | -10/Materials | Build established: Mutant 528 | -10/Materials | Discovered new exit (range 15) 766 | -10/Materials | Discovered new exit (range 15) 945 | -10/Materials | Entered Mines 987 | -10/Mines | Discovered new exit (range 11) 1090 | -10/Mines | Met a Derelict shopkeep closing up shop 1120 | -10/Mines | Discovered new exit (range 15) 1296 | -10/Mines | Learned location of 1 exit from Materials 1407 | -10/Mines | Learned Materials interactive machine intel 1514 | -10/Mines | Received a Rocket Launcher from a helpful Derelict 1687 | -10/Mines | Entered Materials 1687 | -9/Materials | Evolved 2 slots: Propulsion x1, Utility x1 1688 | -9/Materials | Identified exit to Materials 1689 | -9/Materials | Loaded intel: 18 interactive machine locations 2187 | -9/Materials | Repaired Lgt. Treads 2214 | -9/Materials | Repaired Lgt. Treads 2555 | -9/Materials | Discovered new exit (range 8) 2671 | -9/Materials | Repaired Hcp. Storage Unit? 2864 | -9/Materials | Discovered exit to Materials (range 7) 3007 | -9/Materials | Build established: Scavenger-Mutant 3038 | -9/Materials | Identified exit to Mines 3325 | -9/Materials | Build established: Mutant 3718 | -9/Materials | Entered Mines 3722 | -9/Mines | Assisted by bots powering up and referring to "LRC-V3" 3744 | -9/Mines | Found a hidden stash of uninstalled traps 3833 | -9/Mines | Learned Materials non-interactive machine intel 3846 | -9/Mines | A weapon hastily lodged in a ceiling crevice suddenly fell to the ground 3885 | -9/Mines | Discovered exit to Materials (range 13) 3888 | -9/Mines | Learned location of Zion (-6) 3904 | -9/Mines | Learned location of Storage (-8) 4149 | -9/Mines | Excavation squad dispatched 4149 | -9/Mines | A large section of the Mines collapsed 4360 | -9/Mines | Joined a pair of Derelicts in attacking an 0b10 outpost 4750 | -9/Mines | Deemed a non-threat by the Exiles lab entrance 4752 | -9/Mines | Discovered new exit (range 5) 4860 | -9/Mines | Entered Exiles 4899 | -9/Exiles | Met 8R-AWN 4924 | -9/Exiles | Met EX-HEX 4985 | -9/Exiles | Met EX-DEC 5067 | -9/Exiles | Discovered new exit (range 14) 5303 | -9/Exiles | Warned about trapping Exiles lab 5519 | -9/Exiles | Attacked by the Exiles 5681 | -9/Exiles | Destroyed 8R-AWN 5683 | -9/Exiles | Found Prototype Device 5683 | -9/Exiles | Identified AS-neutralizer No. 17b 5707 | -9/Exiles | Lost 5 parts (1p2n1u1w) 5716 | -9/Exiles | Found Prototype Processor 5908 | -9/Exiles | Core integrity fell below 50% 5932 | -9/Exiles | Identified Exp. Targeting Computer 5935 | -9/Exiles | Core integrity fell below 20% 5954 | -9/Exiles | Lost 6 parts (2n2u2w) 6236 | -9/Exiles | Destroyed EX-DEC 6274 | -9/Exiles | Destroyed EX-HEX 6291 | -9/Exiles | Destroyed EX-BIN 7215 | -9/Exiles | Entered Mines 7242 | -8/Mines | Build established: Scavenger-Mutant 7334 | -8/Mines | Destroyed by G-47 Trooper with Particle Gun Last Messages --------------- 06888_ Machine disabled. 06897_ Acquired 19 matter. 06900_ Acquired 12 matter. 06946_ Dropped Adv. Treads. 07200_ Dropped Mak. Leg. 07202_ Dropped Lgt. Treads. 07205_ Acquired Imp. Signal Interpreter. 07208_ Acquired Hacking Suite. 07211_ Acquired Machine Analyzer. LOCATION=UNKNOWN GOAL=ESCAPE 07247_ G-47 Trooper destroyed. 07253_ G-50 Soldier destroyed. 07258_ Acquired 27 matter. 07260_ The unstable cave ceiling collapses. 07260_ Acquired 39 matter. 07263_ Acquired 11 matter. 07273_ The unstable cave ceiling collapses. 07282_ T-07 Excavator is excavating. 07333_ Laser Drill disabled. Map ----- +----------------------------------------------------+ | ???#### ##????????????????? | | ??## ##???????????????? | | ??# #???????????????? | | ??# ### #???????????????? | | ??#??????# ##???????????????? | | ?????????# ####????????????????? | | ?????????# # #?????????????????? | | ???????### ##?#######?????????? | | ???????# [=* ### ##????????? | | ???????# = =[# # ####?????? | | ???????# ! ##????? | | ???????# #????? | | ???????## # ## #????? | | ????????## ####### #????? | | ?????????####?????# ## ##????? | | ???????????????#### #### #?????? | | ???????????????? #??# #?????? | | ????????????????### #### #?????? | | ??????????????????# #?????? | | ??????????????????# ######?????? | | ?????????????????## ####???????? | | ?????????????????# #???????? | | ?????????????????# #???????? | | ?????????????????# ## ####????? | | ?????????????????# ?# #????? | | ?????????????????# ?####@ #????? | | ?????????????????# ???# #????? | | ????????????????? ?? ???? | | ????????????????? ?#g l ??? | | ????????????????# #?# " " ?? | | ???????????????? #??# " "" #? | | ????????????????##???# g #? | | ?????????????????????# #? | | ?????????????????????###########? | | ????????????????????????????????? | | ????????????????????????????????? | | ????????????????????????????????? | | | | | | | | | | | | | | | | | | | | | | | | | | | +----------------------------------------------------+ Best States ------------- Heat Dissipation 39 Energy Generation 19 Energy Capacity 310 Matter Stores 300 Matter Capacity 300 Sight Range 16 Terrain Scan Density 10 Armor Coverage 375 Core Shielding 20 Weapon Cycling 25 Evasion (%) 40 Targeting Accuracy 12 Recoil Reduction 3 Item Schematics ----------------- Huge Storage Unit | -10/Materials | Hacked Robot Schematics ------------------ None Fabricated ------------ Nothing Alien Tech Used ----------------- None Achievements -------------- None Challenges ------------ None Game ------ Seed SpreadBiometalLaser Manual? 0 Play Time 00:29:08 Cumulative 1300.4 hours Start 2023.06.19 @ 14:00:08 End 2023.06.19 @ 14:28:45 Sessions 1 Manual Loads 0 Difficulty Rogue Special Mode None Game No. 938 Rogue 934 Adventurer 4 Explorer 0 Win Type - Total 149 Types 111/10/10/6/2/1/1/5/3 Lore% 97 Gallery% 98 Achievement% 98 Wizard Run 0 Options --------- ASCII 0 Keyboard 1 Movement Vi Keybinds 0 Fullscreen 0 Font 20/X11 Map View 76x50 Tactical HUD 1 Map Filters NONE Filters NONE Steam 1 RUN: 5a29a623-911a-49ce-acd9-52fe2fd2dc5e